bitfinex-derivatives/quotes_SOLF0:USTF0_20250206
["timestamp","ask_amount","ask_price","bid_price","bid_amount"]
[1738846488287,5.0279,198.82,198.81,0.03605469]
[1738846490787,5.0291,198.78,198.74,8.75568991]
[1738846491584,5.0291,198.78,198.74,13.78548991]
[1738846491789,8.75568991,198.81,198.74,13.78548991]
[1738846492093,0.03176856,198.78,198.74,0.03245789]
[1738846492284,8.75568991,198.79,198.73,5.0301]
[1738846492486,8.79379231,198.77,198.73,0.03862558]
[1738846492685,8.75568991,198.77,198.7,8.75568991]
[1738846493090,8.78901273,198.77,198.73,0.03879255]
[1738846493784,5.0299,198.74,198.73,0.03879255]
[1738846497600,5.0308,198.71,198.68,8.75568991]
[1738846498898,0.03332348,198.71,198.68,13.82228991]
[1738846499098,0.03332348,198.71,198.68,8.79088991]
[1738846499602,0.03332348,198.71,198.7,8.75568991]
[1738846500001,0.03332348,198.71,198.7,13.78658991]
[1738846500899,0.03332348,198.71,198.68,0.0352]
[1738846501403,5.0312,198.69,198.68,0.0352]
[1738846501702,0.03332348,198.71,198.68,0.0352]
[1738846501903,0.03332348,198.71,198.68,8.79088991]
[1738846503102,0.03332348,198.71,198.68,0.0352]
[1738846504903,5.031,198.7,198.68,0.0352]
[1738846505101,0.03332348,198.71,198.68,0.0352]
[1738846505307,0.03332348,198.71,198.7,8.75568991]
[1738846505506,0.03332348,198.71,198.7,13.78658991]
[1738846505904,8.78901339,198.71,198.6,8.75568991]
[1738846506109,8.75568991,198.68,198.6,8.75568991]
[1738846506810,5.0319,198.66,198.62,5.0327]
[1738846507211,5.06762265,198.66,198.62,5.0327]
[1738846508311,5.06762265,198.66,198.6,8.75568991]
[1738846508612,5.06762265,198.66,198.61,5.0331]
[1738846509313,5.0324,198.65,198.6,13.78908991]
[1738846510308,0.03572265,198.66,198.6,13.78908991]
[1738846510513,5.0325,198.64,198.6,13.78908991]
[1738846511808,8.75568991,198.64,198.58,8.75568991]
[1738846512213,5.0331,198.62,198.58,8.75568991]
[1738846512407,5.0331,198.62,198.56,8.75568991]
[1738846513108,0.03416417,198.63,198.58,8.75568991]
[1738846513713,5.0331,198.62,198.58,13.78958991]
[1738846515716,0.03416417,198.63,198.6,13.78898991]
[1738846516015,0.03416417,198.63,198.6,5.0333]
[1738846516210,5.06686417,198.63,198.59,5.0336]
[1738846516814,5.06686417,198.63,198.58,8.75568991]
[1738846517618,5.06686417,198.63,198.59,5.0335]
[1738846518924,0.03416417,198.63,198.6,8.75568991]
[1738846519823,0.03416417,198.63,198.61,5.0331]
[1738846520123,0.03416417,198.63,198.6,8.75568991]
[1738846520321,5.06686417,198.63,198.6,8.75568991]
[1738846520627,5.06686417,198.63,198.58,8.75568991]
[1738846521324,5.033,198.62,198.58,13.78938991]
[1738846521722,5.033,198.62,198.54,4.0952]
[1738846521723,0.03416417,198.63,198.56,8.75568991]
[1738846521923,5.0334,198.61,198.57,5.0342]
[1738846522133,8.75568991,198.62,198.54,12.85088991]
[1738846522326,8.75568991,198.56,198.48,7.02390889]
[1738846522632,8.75568991,198.49,198.48,7.02390889]
[1738846523927,8.75568991,198.49,198.43,1.7001]
[1738846524537,0.03402112,198.48,198.43,1.7001]
[1738846524729,0.03402112,198.48,198.45,5.037]
[1738846525032,0.03402112,198.48,198.43,1.7001]
[1738846525735,0.03402112,198.48,198.44,8.75568991]
[1738846526729,0.03402112,198.48,198.47,5.0367]
[1738846527537,0.03402112,198.48,198.46,5.037]
[1738846527727,0.03402112,198.48,198.44,8.75568991]
[1738846527927,0.03402112,198.48,198.43,1.7001]
[1738846528426,8.75568991,198.47,198.4,11.84518991]
[1738846529037,5.0372,198.46,198.41,5.038]
[1738846529734,5.0372,198.46,198.42,5.038]
[1738846530840,0.03402112,198.48,198.44,8.75568991]
[1738846531234,0.03402112,198.48,198.45,5.0372]
[1738846531531,0.03402112,198.48,198.42,8.75568991]
[1738846532130,5.0367,198.47,198.43,5.0375]
[1738846532334,0.03402112,198.48,198.42,8.75568991]
[1738846533739,5.07052112,198.48,198.44,5.0375]
[1738846533938,0.03402112,198.48,198.46,8.75568991]
[1738846534441,0.03402112,198.48,198.47,5.0367]
[1738846541045,0.03402112,198.48,198.45,5.0372]
[1738846541244,0.03402112,198.48,198.44,8.75568991]
[1738846541643,0.03402112,198.48,198.46,5.0368]
[1738846542844,0.03402112,198.48,198.43,6.7594]
[1738846543345,8.78971103,198.48,198.41,5.0382]
[1738846543648,13.79288991,198.46,198.41,5.0382]
[1738846544042,5.0372,198.46,198.42,5.0379]
[1738846544441,8.78971103,198.48,198.42,8.75568991]
[1738846544744,0.03402112,198.48,198.45,5.0371]
[1738846544944,8.75568991,198.5,198.45,5.0371]
[1738846545146,0.03690804,198.48,198.45,5.0371]
[1738846545742,0.03690804,198.48,198.46,5.0368]
[1738846545938,0.03690804,198.48,198.44,8.75568991]
[1738846546147,0.03690804,198.48,198.46,8.75568991]
[1738846546446,29.82741659,198.52,198.44,8.75568991]
[1738846546642,0.03337246,198.49,198.4,13.70779577]
[1738846546842,5.06987246,198.49,198.44,5.0373]
[1738846548846,5.06987246,198.49,198.45,5.0372]
[1738846550451,5.0365,198.48,198.45,5.0372]
[1738846550653,5.0365,198.48,198.44,5.0374]
[1738846551652,5.037,198.46,198.43,5.0377]
[1738846551853,5.037,198.46,198.4,13.70779577]
[1738846552354,0.03429834,198.45,198.4,13.70779577]
[1738846552957,0.03429834,198.45,198.37,13.70779577]
[1738846553656,5.0376,198.44,198.4,5.0383]
[1738846554058,5.0376,198.44,198.37,13.70779577]
[1738846555253,5.0382,198.42,198.38,5.0388]
[1738846556163,5.0382,198.42,198.37,13.70779577]
[1738846556364,5.0382,198.42,198.39,5.0387]
[1738846556959,0.03429834,198.45,198.39,5.0387]
[1738846557154,5.0378,198.43,198.39,5.0387]
[1738846557855,0.03429834,198.45,198.37,13.70779577]
[1738846559356,0.03429834,198.45,198.39,5.0387]
[1738846559561,0.03429834,198.45,198.37,13.70779577]
[1738846560160,0.03429834,198.45,198.42,5.0378]
[1738846560961,0.03429834,198.45,198.38,5.0389]
[1738846560962,5.0383,198.41,198.38,5.0389]
[1738846561363,13.74209411,198.45,198.31,13.70779577]
[1738846561757,13.70779577,198.45,198.31,13.70779577]
[1738846561957,0.03414847,198.4,198.31,13.70779577]
[1738846562761,5.07284847,198.4,198.36,5.0395]
[1738846563364,0.03414847,198.4,198.3,45.79094413]
[1738846563563,0.03414847,198.4,198.29,3.3541]
[1738846563756,1.63034847,198.4,198.29,3.3541]
[1738846564263,5.0391,198.38,198.31,13.70779577]
[1738846565162,1.63034847,198.4,198.31,13.70779577]
[1738846566263,5.0397,198.36,198.31,18.74839577]
[1738846566468,5.0397,198.36,198.31,13.70779577]
[1738846566663,0.03596684,198.35,198.31,8.78337946]
[1738846567063,5.07576684,198.35,198.31,13.82407946]
[1738846567569,5.0401,198.34,198.31,8.78337946]
[1738846567962,5.0401,198.34,198.29,8.78337946]
[1738846568369,0.0324539,198.33,198.29,8.78337946]
[1738846569272,5.0729539,198.33,198.29,8.78337946]
[1738846570073,0.0324539,198.33,198.29,8.78337946]
[1738846570274,0.0324539,198.33,198.29,13.82467946]
[1738846570769,5.0406,198.32,198.27,8.78337946]
[1738846570974,8.81583336,198.33,198.27,5.0418]
[1738846571168,8.81583336,198.33,198.25,8.78337946]
[1738846571169,8.78337946,198.31,198.25,8.78337946]
[1738846571369,5.0414,198.29,198.25,8.78337946]
[1738846571570,8.78337946,198.31,198.25,13.82547946]
[1738846571970,0.03650985,198.29,198.25,8.78337946]
[1738846572173,0.03650985,198.29,198.28,5.0416]
[1738846574077,10.27687946,198.39,198.27,8.78337946]
[1738846574280,10.27687946,198.39,198.33,8.78337946]
[1738846574676,15.31587946,198.39,198.34,5.04]
[1738846574977,8.78337946,198.37,198.31,8.78337946]
[1738846575173,8.78337946,198.37,198.35,0.03283598]
[1738846575372,5.0396,198.36,198.35,0.03283598]
[1738846576174,8.78337946,198.37,198.25,8.78337946]
[1738846576380,8.78337946,198.31,198.25,8.78337946]
[1738846576775,8.78337946,198.29,198.23,10.57677946]
[1738846576980,8.78337946,198.29,198.21,8.78337946]
[1738846577182,8.78337946,198.27,198.22,5.0431]
[1738846577376,13.8582481,198.27,198.22,5.0431]
[1738846577885,13.8582481,198.27,198.21,8.78337946]
[1738846577886,8.8163481,198.27,198.19,8.78337946]
[1738846578186,5.0422,198.26,198.21,5.0433]
[1738846578390,0.03637497,198.25,198.21,5.0433]
[1738846578994,0.03637497,198.25,198.16,13.7407143]
[1738846579180,0.03637497,198.25,198.22,5.043]
[1738846579692,0.03637497,198.25,198.24,5.0426]
[1738846584093,13.7407143,198.35,198.22,13.7407143]
[1738846584295,13.7407143,198.35,198.29,5.0412]
[1738846585093,5.0398,198.36,198.25,13.7407143]
[1738846585487,0.03430832,198.34,198.3,0.03781743]
[1738846586295,0.03430832,198.34,198.3,5.07871743]
[1738846586493,0.03430832,198.34,198.3,0.03781743]
[1738846586791,0.03430832,198.34,198.31,5.0408]
[1738846587193,0.03430832,198.34,198.3,0.03781743]
[1738846587387,0.03430832,198.34,198.31,5.0408]
[1738846588287,0.03430832,198.34,198.3,0.03781743]
[1738846589295,5.0405,198.33,198.3,0.03781743]
[1738846589697,0.03430832,198.34,198.3,0.03781743]
[1738846591499,5.07450832,198.34,198.3,0.03781743]
[1738846592904,0.03430832,198.34,198.3,5.07881743]
[1738846593102,0.03430832,198.34,198.3,0.03781743]
[1738846593598,0.03430832,198.34,198.32,5.0403]
[1738846593900,0.03430832,198.34,198.3,0.03781743]
[1738846594306,0.03430832,198.34,198.32,5.0403]
[1738846596805,5.0408,198.31,198.3,0.03781743]
[1738846597003,13.7407143,198.31,198.19,13.7407143]
[1738846597205,13.7407143,198.31,198.2,5.0436]
[1738846597404,13.7407143,198.31,198.19,13.7407143]
[1738846597806,5.0413,198.29,198.24,5.0426]
[1738846598108,0.03282854,198.28,198.24,5.0426]
[1738846600313,0.03282854,198.28,198.19,13.7407143]
[1738846600513,0.03282854,198.28,198.22,13.7407143]
[1738846601213,0.03282854,198.28,198.27,5.0418]
[1738846601806,13.55203384,198.37,198.26,1.7163]
[1738846602115,13.7407143,198.38,198.26,1.7163]
[1738846602813,13.7407143,198.38,198.26,3.2188]
[1738846603007,22.50606825,198.39,198.3,0.03681707]
[1738846603008,0.03453918,198.34,198.3,0.03681707]
[1738846603413,0.03453918,198.34,198.32,5.0406]
[1738846604609,0.03453918,198.34,198.3,0.03681707]
[1738846604913,0.03453918,198.34,198.31,5.0407]
[1738846607412,0.03453918,198.34,198.3,0.03681707]
[1738846607710,0.03453918,198.34,198.32,5.0405]
[1738846609316,0.03453918,198.34,198.33,5.0403]
[1738846610511,0.03453918,198.34,198.32,5.0405]
[1738846610917,0.03453918,198.34,198.3,0.03681707]
[1738846611918,0.03453918,198.34,198.31,5.0406]
[1738846612118,0.03453918,198.34,198.3,0.03681707]
[1738846612519,0.03453918,198.34,198.31,5.0408]
[1738846613925,5.07463918,198.34,198.31,5.0408]
[1738846614722,0.03453918,198.34,198.31,5.0408]
[1738846619226,0.03453918,198.34,198.32,5.0405]
[1738846619622,0.03453918,198.34,198.3,0.03681707]
[1738846620224,0.03453918,198.34,198.32,5.0405]
[1738846620723,0.03453918,198.34,198.3,0.03681707]
[1738846620923,0.03453918,198.34,198.33,5.0403]
[1738846622526,0.03453918,198.34,198.32,5.0405]
[1738846623327,0.03453918,198.34,198.3,5.07771707]
[1738846623827,0.03453918,198.34,198.31,5.0406]
[1738846624127,0.03453918,198.34,198.33,8.78498106]
[1738846624728,0.03453918,198.34,198.3,13.75790659]
[1738846624926,0.03453918,198.34,198.33,5.0403]
[1738846625119,21.01256825,198.43,198.3,13.75790659]
[1738846625318,5.0385,198.4,198.36,5.0394]
[1738846626021,21.01256825,198.43,198.3,13.72108952]
[1738846626225,0.03871055,198.38,198.36,5.0395]
[1738846630731,0.03871055,198.38,198.35,0.03696821]
[1738846630929,0.03871055,198.38,198.37,5.0393]
[1738846635036,21.01256825,198.45,198.41,5.0382]
[1738846635235,21.01256825,198.45,198.36,1.6743]
[1738846635936,5.0377,198.44,198.36,1.6743]
[1738846636137,0.03428388,198.42,198.39,0.03851269]
[1738846637033,0.03428388,198.42,198.39,5.07701269]
[1738846638734,0.03428388,198.42,198.39,0.03851269]
[1738846638942,0.03428388,198.42,198.4,5.0385]
[1738846639841,0.03428388,198.42,198.39,0.03851269]
[1738846640141,5.07248388,198.42,198.39,0.03851269]
[1738846640440,0.03428388,198.42,198.39,0.03851269]
[1738846640641,5.0383,198.41,198.39,0.03851269]
[1738846642441,5.0385,198.4,198.39,0.03851269]
[1738846644344,0.03428388,198.42,198.39,0.03851269]
[1738846644944,5.07248388,198.42,198.39,0.03851269]
[1738846646846,0.03428388,198.42,198.39,0.03851269]
[1738846648146,0.03428388,198.42,198.39,8.81798142]
[1738846649046,0.03428388,198.42,198.4,5.0388]
[1738846649254,0.03428388,198.42,198.39,0.03851269]
[1738846649848,13.81826873,198.41,198.39,0.03851269]
[1738846650343,8.77946873,198.41,198.39,0.03851269]
[1738846650547,0.03428388,198.42,198.39,0.03851269]
[1738846651650,5.0389,198.41,198.39,0.03851269]
[1738846651840,8.77946873,198.41,198.39,0.03851269]
[1738846652345,5.039,198.4,198.39,0.03851269]
[1738846652948,5.0403,198.36,198.31,5.0413]
[1738846653249,5.0403,198.36,198.29,8.77946873]
[1738846653250,8.77946873,198.36,198.29,8.77946873]
[1738846653444,5.041,198.33,198.28,5.042]
[1738846653647,8.77946873,198.32,198.25,8.77946873]
[1738846654051,13.85716006,198.3,198.27,0.03492953]
[1738846654552,13.85707141,198.3,198.27,0.03356987]
[1738846656853,5.0418,198.29,198.27,0.03356987]
[1738846657253,0.03590268,198.3,198.27,0.03356987]
[1738846657454,5.0421,198.28,198.27,0.03356987]
[1738846661155,5.07770268,198.3,198.27,0.03356987]
[1738846661548,0.03590268,198.3,198.27,0.03356987]
[1738846661749,0.03590268,198.3,198.28,5.042]
[1738846661953,0.03590268,198.3,198.27,0.03356987]
[1738846662756,0.03590268,198.3,198.27,5.07586987]
[1738846664357,0.03590268,198.3,198.27,0.03356987]
[1738846664563,0.03590268,198.3,198.28,5.042]
[1738846667263,0.03590268,198.3,198.27,5.07586987]
[1738846668560,0.03590268,198.3,198.27,0.03356987]
[1738846668561,5.07750268,198.3,198.27,0.03356987]
[1738846669060,0.03590268,198.3,198.27,0.03356987]
[1738846669262,13.77176257,198.3,198.27,0.03356987]
[1738846669659,5.042,198.28,198.27,0.03356987]
[1738846669858,13.77176257,198.3,198.17,15.30665989]
[1738846670155,13.73585989,198.27,198.18,5.0443]
[1738846670353,13.73585989,198.27,198.16,1.6749]
[1738846670758,5.0438,198.22,198.16,6.7198]
[1738846671163,0.03637872,198.21,198.17,0.03798424]
[1738846671359,5.08027872,198.21,198.17,0.03798424]
[1738846672663,0.03637872,198.21,198.17,0.03798424]
[1738846672869,13.77223861,198.21,198.17,0.03798424]
[1738846673660,5.0445,198.19,198.17,0.03798424]
[1738846673859,13.77223861,198.21,198.17,0.03798424]
[1738846674454,5.0443,198.19,198.17,0.03798424]
[1738846675662,5.0439,198.19,198.17,0.03798424]
[1738846676659,18.81573861,198.21,198.17,0.03798424]
[1738846676964,13.77223861,198.21,198.17,0.03798424]
[1738846677164,5.0438,198.2,198.17,0.03798424]
[1738846679167,18.81563861,198.21,198.17,0.03798424]
[1738846680367,0.03637872,198.21,198.17,0.03798424]
[1738846680860,8.83460145,198.21,198.17,0.03798424]
[1738846681058,0.03637872,198.21,198.17,0.03798424]
[1738846681665,0.03637872,198.21,198.19,5.0436]
[1738846682470,0.03637872,198.21,198.2,5.0436]
[1738846686871,0.03637872,198.21,198.19,6.723]
[1738846687071,0.03637872,198.21,198.19,5.0443]
[1738846687267,0.03637872,198.21,198.17,0.03798424]
[1738846687466,0.03637872,198.21,198.2,5.0441]
[1738846689169,0.03637872,198.21,198.18,5.0446]
[1738846689775,0.03637872,198.21,198.17,0.03798424]
[1738846689776,0.03637872,198.21,198.19,5.0443]
[1738846690572,0.03637872,198.21,198.2,5.0441]
[1738846698776,5.0429,198.25,198.21,5.0436]
[1738846699784,5.08078977,198.25,198.21,5.07652532]
[1738846700988,5.0433,198.24,198.21,0.03292532]
[1738846703082,0.03788977,198.25,198.24,5.0431]
[1738846703886,0.03788977,198.25,198.23,5.0433]
[1738846704092,0.03788977,198.25,198.21,0.03292532]
[1738846704487,5.08088977,198.25,198.21,5.07672532]
[1738846704787,0.03788977,198.25,198.21,0.03292532]
[1738846704986,0.03788977,198.25,198.23,5.0433]
[1738846706186,0.03788977,198.25,198.24,5.0431]
[1738846706890,0.03788977,198.25,198.21,0.03292532]
[1738846707091,0.03788977,198.25,198.23,5.0433]
[1738846709293,0.03788977,198.25,198.21,0.03292532]
[1738846709493,0.03788977,198.25,198.21,5.07672532]
[1738846710195,8.83349352,198.25,198.21,5.07672532]
[1738846710390,5.0436,198.22,198.21,0.03292532]
[1738846711493,8.79560375,198.23,198.21,0.03292532]
[1738846712893,8.83349352,198.25,198.21,5.07652532]
[1738846713086,8.83349352,198.25,198.21,0.03292532]
[1738846713286,0.03788977,198.25,198.21,0.03292532]
[1738846713493,0.03788977,198.25,198.22,5.0435]
[1738846714597,0.03788977,198.25,198.21,0.03292532]
[1738846714795,0.03788977,198.25,198.23,5.0433]
[1738846716390,0.03788977,198.25,198.24,5.0431]
[1738846722193,0.03788977,198.25,198.23,5.0433]
[1738846724293,0.03788977,198.25,198.24,5.0431]
[1738846726704,0.03788977,198.25,198.24,13.83870375]
[1738846729599,0.03788977,198.25,198.24,5.0431]
[1738846729802,0.03788977,198.25,198.23,5.0433]
[1738846732800,0.03788977,198.25,198.21,0.03292532]
[1738846733006,0.03788977,198.25,198.24,5.0431]
[1738846734808,0.03788977,198.25,198.24,13.83870375]
[1738846741208,0.03788977,198.25,198.22,13.83910375]
[1738846741510,0.03788977,198.25,198.22,8.79560375]
[1738846742316,0.03788977,198.25,198.24,5.0431]
[1738846745914,0.03788977,198.25,198.21,0.03292532]
[1738846745915,8.83349352,198.25,198.21,0.03292532]
[1738846746818,5.0432,198.24,198.21,0.03292532]
[1738846747724,8.83349352,198.25,198.21,0.03292532]
[1738846748321,13.87629352,198.25,198.21,0.03292532]
[1738846754025,8.83349352,198.25,198.21,0.03292532]
[1738846754231,5.0431,198.24,198.21,0.03292532]
[1738846757532,8.83349352,198.25,198.21,0.03292532]
[1738846757723,0.03788977,198.25,198.22,5.0435]
[1738846757925,0.03788977,198.25,198.21,0.03292532]
[1738846758431,0.03788977,198.25,198.21,5.07672532]
[1738846759132,5.0431,198.24,198.21,0.03292532]
[1738846760133,8.79560375,198.23,198.21,0.03292532]
[1738846760631,5.0443,198.2,198.14,8.79560375]
[1738846761130,8.79560375,198.19,198.13,5.0458]
[1738846761326,8.79560375,198.19,198.12,8.79560375]
[1738846761729,5.0449,198.17,198.12,8.79560375]
[1738846762029,0.03313764,198.17,198.14,8.82937624]
[1738846762232,0.03313764,198.17,198.14,13.87477624]
[1738846762426,8.79560375,198.21,198.14,13.84100375]
[1738846762632,0.03376516,198.17,198.15,5.0453]
[1738846763432,0.03376516,198.17,198.14,13.87413211]
[1738846765234,0.03376516,198.17,198.14,5.07852836]
[1738846765837,0.03376516,198.17,198.14,0.03302836]
[1738846767934,8.82936891,198.17,198.14,0.03302836]
[1738846769743,5.0454,198.15,198.14,0.03302836]
[1738846771232,5.0451,198.16,198.14,0.03302836]
[1738846772339,13.87426891,198.17,198.14,0.03302836]
[1738846773644,5.07866516,198.17,198.14,0.03302836]
[1738846773844,0.03376516,198.17,198.14,8.82863211]
[1738846774143,0.03376516,198.17,198.14,0.03302836]
[1738846774643,5.0453,198.16,198.14,0.03302836]
[1738846775245,5.07876516,198.17,198.14,0.03302836]
[1738846776051,0.03376516,198.17,198.14,0.03302836]
[1738846778547,0.03376516,198.17,198.14,8.82863211]
[1738846779648,0.03376516,198.17,198.14,13.87423211]
[1738846782648,0.03376516,198.17,198.14,0.03302836]
[1738846783549,0.03376516,198.17,198.14,8.82863211]
[1738846783749,0.03376516,198.17,198.14,13.87423211]
[1738846783950,0.03376516,198.17,198.14,8.82863211]
[1738846784651,0.03376516,198.17,198.15,5.0454]
[1738846785046,0.03376516,198.17,198.14,8.82863211]
[1738846785949,0.03376516,198.17,198.14,13.87423211]
[1738846786351,0.03376516,198.17,198.14,8.82863211]
[1738846787047,5.07866516,198.17,198.14,8.82863211]
[1738846788047,0.03376516,198.17,198.14,8.82863211]
[1738846789752,0.03376516,198.17,198.15,5.0453]
[1738846790249,0.03376516,198.17,198.14,8.82863211]
[1738846790459,0.03376516,198.17,198.16,5.0451]
[1738846790656,0.03376516,198.17,198.16,13.84070375]
[1738846792664,6.516e-05,198.17,198.16,13.84070375]
[1738846797652,26.05456825,198.29,198.16,8.79560375]
[1738846797956,21.01256825,198.29,198.27,8.79560375]
[1738846798856,21.01256825,198.29,198.27,13.83790375]
[1738846799255,21.01256825,198.29,198.27,5.0423]
[1738846800468,21.01256825,198.29,198.26,5.07582334]
[1738846800768,21.01256825,198.29,198.26,0.03332334]
[1738846801765,21.01256825,198.29,198.28,5.0421]
[1738846802067,0.03441425,198.3,198.28,5.0421]
[1738846802466,0.03441425,198.3,198.29,5.0418]
[1738846802771,21.01256825,198.36,198.29,8.79560375]
[1738846803067,8.79560375,198.35,198.3,5.0413]
[1738846803367,8.79560375,198.35,198.27,8.79560375]
[1738846803368,8.79560375,198.33,198.27,8.79560375]
[1738846803563,8.79560375,198.33,198.25,8.79560375]
[1738846803564,5.0411,198.32,198.25,8.79560375]
[1738846803959,0.03495206,198.3,198.27,0.03218059]
[1738846804159,0.03495206,198.3,198.27,5.07448059]
[1738846804363,0.03495206,198.3,198.27,0.03218059]
[1738846804764,0.03495206,198.3,198.27,5.07448059]
[1738846804966,0.03495206,198.3,198.27,8.82778434]
[1738846805166,0.03495206,198.3,198.29,8.79560375]
[1738846805464,26.05226825,198.38,198.29,8.79560375]
[1738846805660,26.05226825,198.38,198.27,0.03218059]
[1738846805661,26.05226825,198.38,198.32,8.79560375]
[1738846805865,26.05226825,198.38,198.27,0.03218059]
[1738846805866,8.79560375,198.37,198.3,8.79560375]
[1738846806768,0.03756598,198.35,198.32,0.03285421]
[1738846807169,0.03756598,198.35,198.32,8.82845796]
[1738846807468,0.03756598,198.35,198.32,13.86935796]
[1738846807869,0.03756598,198.35,198.34,5.0405]
[1738846808572,21.01256825,198.38,198.37,5.0398]
[1738846808769,33.20003543,198.41,198.37,8.79560375]
[1738846809069,21.01256825,198.41,198.35,13.83570375]
[1738846809269,29.808172,198.41,198.33,8.79560375]
[1738846809571,8.79560375,198.39,198.33,8.79560375]
[1738846809766,29.808172,198.41,198.33,8.79560375]
[1738846809971,0.03325804,198.39,198.35,0.03742277]
[1738846810571,5.07255804,198.39,198.35,0.03742277]
[1738846810770,0.03325804,198.39,198.35,8.83302652]
[1738846811171,5.07255804,198.39,198.35,8.83302652]
[1738846811471,0.03325804,198.39,198.35,0.03742277]
[1738846811975,5.0398,198.38,198.35,0.03742277]
[1738846812573,5.0398,198.37,198.35,0.03742277]
[1738846812774,8.82886179,198.39,198.35,0.03742277]
[1738846812973,0.03325804,198.39,198.35,0.03742277]
[1738846813974,5.07255804,198.39,198.35,0.03742277]
[1738846814377,0.03325804,198.39,198.35,8.83302652]
[1738846814576,0.03325804,198.39,198.37,8.79560375]
[1738846815472,0.03325804,198.39,198.35,8.83302652]
[1738846816172,5.07275804,198.39,198.35,8.83302652]
[1738846816476,0.03325804,198.39,198.35,8.83302652]
[1738846816671,8.82886179,198.39,198.35,0.03742277]
[1738846816877,5.04,198.36,198.35,0.03742277]
[1738846817675,5.0411,198.32,198.27,10.53770375]
[1738846817873,5.0411,198.32,198.27,8.79560375]
[1738846818078,8.79560375,198.33,198.27,8.79560375]
[1738846818886,0.03841138,198.32,198.28,5.07399933]
[1738846819785,5.0415,198.31,198.28,0.03209933]
[1738846819983,0.03841138,198.32,198.28,0.03209933]
[1738846820387,5.0413,198.31,198.28,0.03209933]
[1738846821293,0.03841138,198.32,198.29,8.79560375]
[1738846822487,5.07941138,198.32,198.28,5.07389933]
[1738846822788,0.03841138,198.32,198.28,5.07389933]
[1738846823091,5.07951138,198.32,198.28,0.03209933]
[1738846823988,0.03841138,198.32,198.28,0.03209933]
[1738846825582,8.79560375,198.31,198.28,0.03209933]
[1738846825786,5.0417,198.3,198.28,0.03209933]
[1738846827090,0.03841138,198.32,198.28,0.03209933]
[1738846827684,0.03841138,198.32,198.28,5.07399933]
[1738846828190,5.0418,198.29,198.28,0.03209933]
[1738846828389,0.03841138,198.32,198.28,0.03209933]
[1738846828989,5.0416,198.3,198.28,0.03209933]
[1738846829189,0.03841138,198.32,198.28,0.03209933]
[1738846829596,5.07901138,198.32,198.28,0.03209933]
[1738846829891,0.03841138,198.32,198.28,0.03209933]
[1738846830394,5.041,198.31,198.28,0.03209933]
[1738846830594,0.03841138,198.32,198.28,0.03209933]
[1738846831700,8.79560375,198.31,198.28,0.03209933]
[1738846832391,5.0412,198.3,198.28,0.03209933]
[1738846832895,8.79560375,198.31,198.28,0.03209933]
[1738846833095,5.0413,198.29,198.28,0.03209933]
[1738846833294,13.83690375,198.29,198.28,0.03209933]
[1738846833694,8.79560375,198.29,198.21,8.79560375]
[1738846833890,13.83860375,198.25,198.19,8.79560375]
[1738846834097,8.79560375,198.25,198.18,5.0445]
[1738846834495,5.0436,198.22,198.17,8.79560375]
[1738846834699,5.0436,198.22,198.17,13.84030375]
[1738846834997,0.03233814,198.21,198.18,0.03439117]
[1738846836599,0.03233814,198.21,198.2,5.0441]
[1738846838700,0.03233814,198.21,198.19,13.83990375]
[1738846839000,0.03233814,198.21,198.19,8.79560375]
[1738846839298,0.03233814,198.21,198.18,0.03439117]
[1738846839691,5.0443,198.2,198.18,0.03439117]
[1738846840198,5.0444,198.19,198.18,0.03439117]
[1738846841401,0.03233814,198.21,198.1,13.75060975]
[1738846841594,5.0449,198.17,198.12,5.046]
[1738846841800,1.7273,198.22,198.1,13.75060975]
[1738846841995,1.5448,198.21,198.1,13.75060975]
[1738846842302,1.5448,198.21,198.1,18.79720975]
[1738846842695,0.03271194,198.17,198.14,0.03745573]
[1738846843800,5.0451,198.16,198.14,0.03745573]
[1738846844202,0.03271194,198.17,198.14,0.03745573]
[1738846844690,5.0451,198.16,198.14,0.03745573]
[1738846845092,0.03271194,198.17,198.14,0.03745573]
[1738846845604,5.0454,198.16,198.14,0.03745573]
[1738846846100,5.0454,198.15,198.14,0.03745573]
[1738846846897,5.07771194,198.17,198.14,0.03745573]
[1738846847098,0.03271194,198.17,198.14,0.03745573]
[1738846848202,207.25409842,198.25,198.16,13.75060975]
[1738846848203,21.01256825,198.25,198.16,13.75060975]
[1738846848402,21.01256825,198.26,198.16,13.75060975]
[1738846848801,5.043,198.25,198.16,13.75060975]
[1738846849504,0.03544884,198.22,198.19,0.03435827]
[1738846852405,0.03544884,198.22,198.2,5.0439]
[1738846852900,0.03544884,198.22,198.19,5.07865827]
[1738846853105,0.03544884,198.22,198.19,0.03435827]
[1738846853506,5.07924884,198.22,198.19,0.03435827]
[1738846853708,0.03544884,198.22,198.19,0.03435827]